Cogmind - Beta 13 @@@ ROGUE MODE // 2024.04.08 @ 21:27:26 Player: elric Result: Destroyed by X-62 Marksman with Pulse Rifle Performance ------------- Evolutions (3) 1500 Regions Visited (5) 1000 Robots Destroyed (14) 70 Value Destroyed (453) 453 Prototype IDs (3) 60 Alien Tech Used (0) 0 Bonus (500) 500 TOTAL SCORE: 3583 Bonus ------- Entered DSFs 500 Cogmind --------- Core Integrity 0/700 Matter 87/300 Energy 100/100 System Corruption 0% Temperature Cool (9) Movement Core (350) Ox6 Location -7/DSF Parts ------- > --- POWER (2) -------- (None) > --- PROPULSION (5) --- (None) > --- UTILITY (3) ------ Large Storage Unit > --- WEAPON (3) ------- (None) > --- INVENTORY (15) --- Ion Engine Cooled Airjet Lightning Gun Advanced Assault Cannon Advanced Assault Cannon Rocket Launcher Peak State ------------ > --- POWER ------------ Ion Engine Light Nuclear Core > --- PROPULSION ------- Carbon-fiber Leg Cooled Airjet Cooled Airjet > --- UTILITY ---------- Large Storage Unit Sensor Array Targeting Computer > --- WEAPON ----------- Precision Beam Rifle Advanced Assault Cannon > --- INVENTORY -------- Enhanced Autogun Advanced Assault Cannon Rocket Launcher Mini Grenade Launcher [Rating: 29] Favorites ----------- Power Ion Engine Engine Ion Engine Power Core Light Nuclear Core Propulsion Light Treads Treads Light Treads Leg Carbon-fiber Leg Hover Unit Cooled Airjet Flight Unit VTOL Module Utility Large Storage Unit Device Sensor Array Storage Large Storage Unit Processor Targeting Computer Weapon Assault Rifle Energy Gun Precision Beam Rifle Ballistic Gun Assault Rifle Ballistic Cannon Advanced Assault Cannon Launcher Rocket Launcher Build | -11 -10 -9 -8 -7 -7 ------- Run | Yrd Mat Mat Mat Fac DSF Slots Evolved 6 | . . 2 2 2 . Power 1 | . . . 1 . . Propulsion 3 | . . 2 . 1 . Utility 1 | . . . 1 . . Weapon 1 | . . . . 1 . Parts Attached 25 | 6 2 7 8 . 2 Power 3 | 1 . . 2 . . Engine 2 | 1 . . 1 . . Core 1 | . . . 1 . . Reactor . | . . . . . . Propulsion 9 | 2 . 3 3 . 1 Treads 2 | 2 . . . . . Leg 2 | . . . 1 . 1 Wheel . | . . . . . . Hover 4 | . . 2 2 . . Flight 1 | . . 1 . . . Utility 6 | 2 2 . 1 . 1 Device 2 | . . . 1 . 1 Storage 3 | 2 1 . . . . Processor 1 | . 1 . . . . Hackware . | . . . . . . Protection . | . . . . . . Artifact . | . . . . . . Weapon 7 | 1 . 4 2 . . Energy Gun 1 | . . . 1 . . Energy Cannon . | . . . . . . Ballistic Gun 2 | 1 . 1 . . . Ballistic Cannon 1 | . . . 1 . . Launcher 3 | . . 3 . . . Special Weapon . | . . . . . . Impact Weapon . | . . . . . . Slashing Weapon . | . . . . . . Piercing Weapon . | . . . . . . Special Melee Weapon . | . . . . . . Unidentified Prototypes 2 | . . 1 1 . . Parts Lost 11 | . . 4 . . 7 Power 2 | . . 1 . . 1 Propulsion 5 | . . 3 . . 2 Utility 3 | . . . . . 3 Weapon 1 | . . . . . 1 Highest Loss Streak 6 | . . 2 . . 6 To Critical Strikes . | . . . . . . Average Slot Usage (%) 66 | . 81 68 61 69 32 Engine 6 | . 14 11 4 . . Core 2 | . . . 2 7 1 Treads 8 | . 28 11 . . . Leg 3 | . . . 6 7 1 Hover 7 | . . 5 9 15 5 Device 2 | . . . 2 7 6 Storage 9 | . 14 11 9 7 7 Processor 8 | . 10 11 9 7 2 Energy Gun 2 | . . . 1 7 5 Ballistic Gun 6 | . 14 11 4 . . Ballistic Cannon 2 | . . . 4 7 . Launcher 3 | . . 7 7 . . Naked Turns . | . . . . . . Heaviest Build 41 | 12 27 32 41 39 28 Greatest Support 40 | 40 40 40 16 16 16 Greatest Overweight (x) 10 | . . 10 8 2 7 Average Overweight (x) 1 | . . 1 2 2 2 Largest Inventory Capacity 15 | 8 15 15 15 15 15 Average Capacity 13 | 7 13 15 15 15 15 Most Carried 9 | 2 4 9 6 5 6 Average Carried 3 | . 2 4 4 4 5 Final Capacity 15 | 8 15 15 15 15 15 Final Carried 6 | 1 4 4 4 4 6 Class Distribution -------------------- 100% | Mutant Dominant Class ---------------- Mutant | -10/Materials Mutant | -9/Materials Mutant | -8/Materials Mutant | -7/Factory Mutant | -7/DSF Resources | -11 -10 -9 -8 -7 -7 ----------- Run | Yrd Mat Mat Mat Fac DSF Matter Collected 455 | 248 82 29 26 . 70 Remotely . | . . . . . . Salvage Created 386 | 16 82 134 93 . 61 Parts 28 | 2 5 15 5 . 1 Haulers Intercepted . | . . . . . . Recyclers Shooed 1 | 1 . . . . . Parts Field Recycled . | . . . . . . Retrieved Matter . | . . . . . . Parts Self-Destructed . | . . . . . . Prevented . | . . . . . . Kills | -11 -10 -9 -8 -7 -7 ------- Run | Yrd Mat Mat Mat Fac DSF Combat Hostiles Destroyed 10 | . 2 4 3 . 1 Guns 4 | . 2 1 . . 1 Cannons 1 | . . . 1 . . AOE 5 | . . 3 2 . . Classes Destroyed 5 | 1 1 2 . . 1 Worker 3 | 1 . 1 1 . . Watcher 1 | . . 1 . . . Grunt 7 | . 2 2 3 . . Sentry 2 | . . 2 . . . Specialist 1 | . . . . . 1 Best Kill Streak 3 | 1 2 2 3 . 1 Combat Bots Only 3 | . 2 1 3 . 1 Max Kills in Single Turn 2 | 1 1 2 2 . 1 Gunslinging . | . . . . . . Exploded 2 | . . 1 2 . . Melee . | . . . . . . Uniques/NPCs Destroyed . | . . . . . . Combat | -11 -10 -9 -8 -7 -7 -------- Run | Yrd Mat Mat Mat Fac DSF Hostile Shots Fired 196 | . 15 55 16 . 110 Missed 66 | . 5 16 8 . 37 Damage Taken 2095 | . 111 508 158 . 1318 Core 822 | . 12 105 . . 705 Absorbed by Shields 33 | . . . . . 33 Core Remaining (%) 92 | 100 95 73 100 . . Volleys Fired 57 | 14 6 16 4 . 17 Largest 2 | 1 1 2 2 . 1 Hottest 81 | 20 20 58 81 . 61 Shots Fired 69 | 14 6 24 8 . 17 Gun 53 | 14 6 16 . . 17 Cannon 4 | . . . 4 . . Launcher 12 | . . 8 4 . . Special . | . . . . . . Kinetic 40 | 14 6 16 4 . . Thermal 17 | . . . . . 17 Explosive 12 | . . 8 4 . . Electromagnetic . | . . . . . . Robot Hit Streak 17 | 4 3 17 4 . 12 Robot Miss Streak 5 | 2 5 1 1 . 1 Penetration Max . | . . . . . . Secondary Targets . | . . . . . . Shots Hit Robots 47 | 9 3 16 4 . 15 Core Hits 26 | 1 2 11 10 . 2 Critical Kills . | . . . . . . Critical Parts Destroyed . | . . . . . . Critical Strikes . | . . . . . . Melee Attacks . | . . . . . . Impact . | . . . . . . Slashing . | . . . . . . Piercing . | . . . . . . Sneak Attacks . | . . . . . . Combat Hostiles . | . . . . . . Follow-up Attacks . | . . . . . . Damage Inflicted 1244 | 116 45 483 348 . 252 Guns 613 | 116 45 200 . . 252 Cannons 56 | . . . 56 . . Explosions 566 | . . 274 292 . . Melee . | . . . . . . Ramming 9 | . . 9 . . . Kinetic 417 | 116 45 200 56 . . Thermal 252 | . . . . . 252 Explosive 566 | . . 274 292 . . Electromagnetic . | . . . . . . Impact . | . . . . . . Slashing . | . . . . . . Piercing . | . . . . . . Highest Corruption . | . . . . . . Average Corruption . | . . . . . . Corruption Purged . | . . . . . . Corruption Blocked . | . . . . . . Overload Shots . | . . . . . . Overflow Damage 1 | . . 1 . . . Projectiles . | . . . . . . Explosions 1 | . . 1 . . . Melee . | . . . . . . Knockbacks 2 | . . 1 1 . . Impact 1 | . . 1 . . . Kinetic 1 | . . . 1 . . Secondary . | . . . . . . Self-Inflicted Damage 37 | . . . 37 . . Shots 1 | . . . 1 . . Rammed 1 | . 1 . . . . Targets Rammed 2 | . 1 1 . . . Kicked . | . . . . . . Crushed 1 | . . 1 . . . Highest Temperature 42 | . . 42 24 . . Average Temperature 13 | . . 15 7 . . Received Heat Transfer 360 | . 60 210 9 . 81 Siege Activations . | . . . . . . Robots Corrupted . | . . . . . . Combat Hostiles . | . . . . . . Parts Fried . | . . . . . . Impact Corruptions . | . . . . . . Robots Melted . | . . . . . . Combat Hostiles . | . . . . . . Parts Melted . | . . . . . . Heat Transferred 555 | . . . . . 555 Parts Sabotaged . | . . . . . . Parts Stolen . | . . . . . . Parts Stripped . | . . . . . . Power Chain Reactions . | . . . . . . Alert | -11 -10 -9 -8 -7 -7 ------- Run | Yrd Mat Mat Mat Fac DSF Peak Influence 198 | 5 125 198 198 89 62 Initial 89 | . 3 5 79 89 62 Average 74 | 1 43 93 129 89 45 Maximum Alert Level . | . . . . . . Low Security (%) 100 | 100 100 100 100 100 100 Level 1 . | . . . . . . Level 2 . | . . . . . . Level 3 . | . . . . . . Level 4 . | . . . . . . Level 5 . | . . . . . . High Security . | . . . . . . Max Security . | . . . . . . Squads Dispatched 6 | . 2 1 2 . 1 Investigation 1 | . 1 . . . . Extermination . | . . . . . . Reinforcement 5 | . 1 1 2 . 1 Assault . | . . . . . . Garrison . | . . . . . . Intercept . | . . . . . . Searches Triggered . | . . . . . . Construction Impeded 1 | . . . 1 . . Haulers Reinforced . | . . . . . . Active Scanning Responses . | . . . . . . Cargo Convoy Interrupts . | . . . . . . Stealth | -11 -10 -9 -8 -7 -7 --------- Run | Yrd Mat Mat Mat Fac DSF Distress Signals 3 | . . 3 . . . Communications Jammed . | . . . . . . Distress Signals . | . . . . . . Times Spotted 31 | . 8 11 7 . 5 Peak Tracking Total 7 | . 3 7 5 . 3 Tactical Retreats 3 | . 1 1 . . 1 Traps | -11 -10 -9 -8 -7 -7 ------- Run | Yrd Mat Mat Mat Fac DSF Traps Triggered 2 | . . . . 1 1 Indirectly . | . . . . . . Trap Hack Attempts . | . . . . . . Triggered . | . . . . . . Disarmed . | . . . . . . Reprogrammed . | . . . . . . Reused . | . . . . . . Traps Extracted . | . . . . . . Installed . | . . . . . . Triggered . | . . . . . . Machines | -11 -10 -9 -8 -7 -7 ---------- Run | Yrd Mat Mat Mat Fac DSF Machines Disabled 1 | . . . 1 . . Max in Single Turn 1 | . . . 1 . . Machines Repaired . | . . . . . . Machines Dismantled . | . . . . . . Machines Sabotaged . | . . . . . . Overloaded Fab Kills . | . . . . . . Hacking | -11 -10 -9 -8 -7 -7 --------- Run | Yrd Mat Mat Mat Fac DSF Machines Accessed 9 | . 3 2 1 3 . Terminals 7 | . 3 2 . 2 . Fabricators . | . . . . . . Repair Stations 1 | . . . . 1 . Recycling Units . | . . . . . . Scanalyzers 1 | . . . 1 . . Garrison Access . | . . . . . . Total Hacks 34 | . 14 10 3 7 . Successful 16 | . 6 5 2 3 . Failed 18 | . 8 5 1 4 . Catastrophic 1 | . . 1 . . . Database Lockouts . | . . . . . . Manual 11 | . 7 4 . . . Terminals 29 | . 14 10 . 5 . Fabricators . | . . . . . . Repair Stations 2 | . . . . 2 . Recycling Units . | . . . . . . Scanalyzers 3 | . . . 3 . . Garrison Access . | . . . . . . Terminal Hacks 14 | . 6 5 . 3 . Record 3 | . 2 . . 1 . Open DSF 1 | . . . . 1 . Alert Level 3 | . 1 2 . . . Unreport Threat 2 | . 1 1 . . . Dispatch Records 1 | . 1 . . . . Maintenance Status 1 | . . 1 . . . Investigation Status 1 | . . 1 . . . Zone Layout 2 | . 1 . . 1 . Fabricator Hacks . | . . . . . . Repair Station Hacks . | . . . . . . Recycling Unit Hacks . | . . . . . . Scanalyzer 2 | . . . 2 . . Insert Component 1 | . . . 1 . . Analyze 1 | . . . 1 . . Garrison Access Hacks . | . . . . . . Unauthorized Hacks . | . . . . . . Terminals . | . . . . . . Fabricators . | . . . . . . Repair Stations . | . . . . . . Recycling Units . | . . . . . . Scanalyzers . | . . . . . . Garrison Access . | . . . . . . Data Cores Recovered . | . . . . . . Used . | . . . . . . Hacking Detections 7 | . 3 2 . 2 . Full Trace Events 1 | . 1 . . . . Feedback Events . | . . . . . . Feedback Blocked . | . . . . . . Robot Schematics Acquired . | . . . . . . Robots Built . | . . . . . . Authchips . | . . . . . . Time . | . . . . . . Total Robot Build Rating . | . . . . . . Part Schematics Acquired 1 | . . . 1 . . Parts Built . | . . . . . . Authchips . | . . . . . . Time . | . . . . . . Total Part Build Rating . | . . . . . . Parts Repaired . | . . . . . . Time . | . . . . . . Parts Recycled . | . . . . . . Recycled Matter . | . . . . . . Retrieved Matter . | . . . . . . Retrieved Components . | . . . . . . Parts Scanalyzed 1 | . . . 1 . . Part Schematics Acquired 1 | . . . 1 . . Parts Damaged . | . . . . . . Bothacking | -11 -10 -9 -8 -7 -7 ------------ Run | Yrd Mat Mat Mat Fac DSF Used RIF Installer . | . . . . . . Robots Hacked . | . . . . . . Non-combat . | . . . . . . Combat . | . . . . . . Robot Hacks Applied . | . . . . . . Relay Couplers Released . | . . . . . . Fabnet Peak Effective % . | . . . . . . Robots Rewired . | . . . . . . Allies Hacked . | . . . . . . Hacks Repelled . | . . . . . . Allies | -11 -10 -9 -8 -7 -7 -------- Run | Yrd Mat Mat Mat Fac DSF Total Allies . | . . . . . . Largest Group . | . . . . . . Highest-Rated Group . | . . . . . . Highest-Rated Ally . | . . . . . . Total Orders . | . . . . . . Ally Attacks . | . . . . . . Total Damage . | . . . . . . Kills . | . . . . . . Allies Corrupted . | . . . . . . Allies Melted . | . . . . . . Intel | -11 -10 -9 -8 -7 -7 ------- Run | Yrd Mat Mat Mat Fac DSF Robot Analysis Total . | . . . . . . Derelict Logs Recovered . | . . . . . . Drone Launches . | . . . . . . Drone Recoveries . | . . . . . . Exploration | -11 -10 -9 -8 -7 -7 ------------- Run | Yrd Mat Mat Mat Fac DSF Turns Passed 1406 | 171 220 347 229 309 130 Spaces Moved 649 | 84 122 145 92 165 41 Core 43 | 5 . 13 14 . 11 Treads 293 | 79 122 92 . . . Legs 25 | . . . 17 . 8 Wheels . | . . . . . . Hover 288 | . . 40 61 165 22 Flight . | . . . . . . Fastest Speed 50 | 50 160 160 116 176 106 Average Speed 183 | 153 160 200 219 176 204 Slowest Speed 550 | 160 160 550 450 176 400 Overloaded Moves . | . . . . . . Propulsion Burnouts . | . . . . . . Robots Hopped . | . . . . . . Cave-ins Triggered . | . . . . . . Exploration Rate (%) 17 | 4 24 17 16 4 40 Regions Visited 5 Branch Regions . Pre-discovered Areas . | . . . . . . Known Exits Taken 1 | . . . . 1 . Unknown Exits Taken 4 | 1 1 1 1 . . Scrap Searched . | . . . . . . Spaces Dug . | . . . . . . Terrain Destroyed 91 | . . 55 36 . . Melee . | . . . . . . Projectile 1 | . . . 1 . . AOE 90 | . . 55 35 . . Terrain Rammed . | . . . . . . Walls Destroyed . | . . . . . . Machines Disabled . | . . . . . . Actions | -11 -10 -9 -8 -7 -7 --------- Run | Yrd Mat Mat Mat Fac DSF Total 801 | 111 140 186 109 185 70 Wait 20 | 5 6 2 3 4 . Move 644 | 83 121 144 91 164 41 Hop . | . . . . . . Pick Up 16 | 2 3 7 3 1 . Fast Attach 11 | 4 1 2 3 . 1 Attach 8 | 2 1 2 3 . . Detach 7 | 1 1 2 . 1 2 Swap 6 | . . 3 2 . 1 Drop 9 | . . 7 . 2 . Fire 57 | 14 6 16 4 . 17 Melee . | . . . . . . Ram . | . . . . . . Kick . | . . . . . . Crush 2 | . 1 1 . . . Escape Stasis 21 | . . . . 13 8 Rewire . | . . . . . . Trap . | . . . . . . Miscellaneous . | . . . . . . Route ------- -11/Scrapyard -10/Materials -9/Materials -8/Materials -7/Factory -7/DSF History --------- Turn | Location | Event 49 | -11/Scrapyard | Discovered new exit (range 16) 172 | -11/Scrapyard | Entered Materials 306 | -10/Materials | Build established: Mutant 360 | -10/Materials | Discovered new exit (range 16) 392 | -10/Materials | Entered another Materials area 392 | -9/Materials | Evolved 2 slots: Propulsion x2 673 | -9/Materials | Discovered new exit (range 13) 739 | -9/Materials | Entered another Materials area 739 | -8/Materials | Evolved 2 slots: Power x1, Utility x1 955 | -8/Materials | Discovered new exit (range 8) 968 | -8/Materials | Entered Factory 968 | -7/Factory | Evolved 2 slots: Propulsion x1, Weapon x1 1223 | -7/Factory | Identified exit to DSF 1277 | -7/Factory | Entered DSF 1332 | -7/DSF | Additional patrols routed to DSF 1383 | -7/DSF | Core integrity fell below 50% 1402 | -7/DSF | Core integrity fell below 20% 1403 | -7/DSF | Lost 6 parts (1p2n2u1w) 1407 | -7/DSF | Destroyed by X-62 Marksman with Pulse Rifle Last Messages --------------- Acquired 61 matter. ALERT: Suspicious intruders detected, dispatching Specialist reinforcements to area. Acquired Imp. Heat Sink. Acquired 7 matter. Carbon-fiber Leg destroyed. Knocked back. Prc. Beam Rifle destroyed. Slug penetrates Wall. Penetrated by Slug. Slug penetrates Wall. Knocked back. Penetrated by Slug. Knocked back. Acquired 2 matter. Penetrated by Slug. Imp. Heat Sink destroyed. Penetrated by Slug. A-02 Transporter destroyed. Slug penetrates Wall. Map ----- +----------------------------------------------------+ | ?????????????????????????????????????????????? | | ?????????????????????????????????????????????? | | ?????????????????????????????????????????????? | | ?????????????????????????????????????????????? | | ??????????"#?????????????????????????????????? | | ?????????#"#?????????????????????????????????? | | ??????####"##????????????????????????????????? | | ??????#"""""#?###??##????????????????????????? | | ??????#"""""##[[#]]]# [[[???????????????????? | | ????"##"" ???????????????????? | | ????""""" ???????????????????? | | ????###"" ## #[[[##???????????????????????? | | ??????### ##???#?????????##?????????????????? | | ???????## ######????????? ?????????????????? | | ???????#[ [[## #???????? ??????????????????? | | ???????#[ [[## ###?????? ??????????????????? | | ???????## #### !!#????? ###????????????????? | | ???????#[ [[## !!#????? !!#????????????????? | | ???????#[ [[## ###????? !!#????????????????? | | ???????#[ [[## #?????? !!?????????????????? | | ??????### ####+#####?? a #??????????????????? | | ??????#!! ## #!!!#?# ##????#????????????? | | ?????##!! #% #!!!## a##!!!# ?????????? | | ?????#; % ????????? | | ?????## % %xHx ????????? | | ??????# @=! ????????? | | ?????#" #; %;///;#%! a##!!!#????????????? | | ?????## #; %%;///###* ##?????????????????? | | ??????########;;#####?? #??????????????????? | | ?????????????###???????? [[?????????????????? | | ????????????????????????? [[#????????????????? | | ??????????????????????????[[#????????????????? | | ??????????????????????????###????????????????? | | ?????????????????????????????????????????????? | | ?????????????????????????????????????????????? | | ?????????????????????????????????????????????? | | ?????????????????????????????????????????????? | | ?????????????????????????????????????????????? | | ?????????????????????????????????????????????? | | ?????????????????????????????????????????????? | | ?????????????????????????????????????????????? | | ?????????????????????????????????????????????? | | ?????????????????????????????????????????????? | | ?????????????????????????????????????????????? | | ?????????????????????????????????????????????? | | ?????????????????????????????????????????????? | | ?????????????????????????????????????????????? | | ?????????????????????????????????????????????? | | ?????????????????????????????????????????????? | | ?????????????????????????????????????????????? | +----------------------------------------------------+ Best States ------------- Heat Dissipation 48 Energy Generation 19 Energy Capacity 310 Matter Stores 294 Matter Capacity 300 Sight Range 16 Robot Scan Range 14 Terrain Scan Density 10 Evasion (%) 40 Targeting Accuracy 5 Recoil Reduction 2 Item Schematics ----------------- Prc. Beam Rifle | -8/Materials | Scanalyzed Robot Schematics ------------------ None Fabricated ------------ Nothing Alien Tech Used ----------------- None Achievements -------------- Crack Shot Everything Is Under Control Made in Tau Ceti IV One Hack Too Far Oops Risk Taker Safety First Storm Trooper Challenges ------------ None Game ------ Seed ChargeHackingShearcannon Manual? 0 Play Time 01:40:24 Cumulative 2.1 hours Start 2024.04.07 @ 22:01:55 End 2024.04.08 @ 21:27:26 Sessions 6 Manual Loads 0 Difficulty Rogue Special Mode None Game No. 2 Rogue 2 Adventurer 0 Explorer 0 Win Type - Total 0 Types 0/0/0/0/0/0/0/0/0 Lore% 0 Gallery% 2 Achievement% 3 Wizard Run 0 Options --------- Layout 2 ASCII 0 Keyboard 1 Movement Numpad Keybinds 0 Fullscreen 1 Font 24/Terminus Map View 50x44 Zoom Use 1% Tactical HUD 0 Map Filters NONE Filters NONE Steam 1 RUN: 81a6c039-e4c3-4d9b-90de-9e140a2e95fa